bitfinex/quotes_BTCUSD_20251224
["timestamp","ask_amount","ask_price","bid_price","bid_amount"]
[1766607447572,0.01144,87679.0,87673.0,0.10267426]
[1766607447780,0.01144,87679.0,87673.0,0.04564428]
[1766607448001,0.01144,87679.0,87674.0,0.01140589]
[1766607448584,0.01144,87679.0,87676.0,0.01140562]
[1766607449573,0.01144,87679.0,87674.0,0.02281178]
[1766607449772,0.01144,87679.0,87675.0,0.01140575]
[1766607449977,0.01144,87679.0,87674.0,0.02281178]
[1766607450224,0.01144,87679.0,87675.0,0.01140575]
[1766607450461,0.01144,87679.0,87676.0,0.01140562]
[1766607450664,0.01144,87679.0,87674.0,0.02281178]
[1766607451172,0.01144,87679.0,87675.0,0.01140575]
[1766607451461,0.01144,87679.0,87674.0,0.02281178]
[1766607451757,0.01144,87679.0,87675.0,0.01140575]
[1766607451990,0.01144,87678.0,87675.0,0.01140575]
[1766607452191,0.01144,87678.0,87674.0,0.02281178]
[1766607452686,0.01144,87678.0,87675.0,0.01140575]
[1766607455973,0.01144,87678.0,87674.0,0.02281178]
[1766607456149,0.01144,87678.0,87675.0,0.01140575]
[1766607458044,0.01144,87678.0,87674.0,0.02281178]
[1766607458283,0.01144,87678.0,87675.0,0.01140575]
[1766607460008,0.01089,87678.0,87675.0,0.06843412]
[1766607460208,0.01089,87678.0,87674.0,0.01140589]
[1766607460642,0.01089,87678.0,87675.0,0.01140575]
[1766607460788,0.01089,87678.0,87674.0,0.01105005]
[1766607460983,0.01089,87678.0,87674.0,0.02245594]
[1766607461628,0.01089,87678.0,87675.0,0.01140575]
[1766607461871,0.01089,87678.0,87675.0,0.01085675]
[1766607462049,0.01089,87678.0,87674.0,0.02245594]
[1766607462250,0.01089,87678.0,87675.0,0.01140575]
[1766607464121,0.01089,87678.0,87674.0,0.01105005]
[1766607464348,0.01089,87678.0,87675.0,0.01140575]
[1766607466323,0.01144,87678.0,87675.0,0.01140575]
[1766607469435,0.01144,87678.0,87674.0,0.01105005]
[1766607469771,0.01144,87678.0,87674.0,0.02190594]
[1766607469928,0.01144,87678.0,87674.0,0.01050005]
[1766607471576,0.11763,87671.0,87655.0,0.0614189]
[1766607471782,0.12903719,87664.0,87656.0,0.03424319]
[1766607471981,0.12903719,87664.0,87647.0,0.0614189]
[1766607471982,0.11763,87662.0,87646.0,0.01140953]
[1766607472186,0.11763,87662.0,87642.0,0.01141005]
[1766607472187,0.01140823,87656.0,87642.0,0.04565324]
[1766607472365,0.01140823,87656.0,87643.0,0.01140992]
[1766607472366,0.11752,87651.0,87643.0,0.01140992]
[1766607472760,0.11752,87651.0,87642.0,0.01146271]
[1766607473009,0.010891,87650.0,87643.0,0.06845954]
[1766607473210,1e-06,87650.0,87646.0,0.01140953]
[1766607473498,1e-06,87650.0,87647.0,0.0114094]
[1766607475278,1e-06,87650.0,87646.0,0.01140953]
[1766607475722,1e-06,87650.0,87647.0,0.0114094]
[1766607476146,0.01144,87654.0,87648.0,0.01140927]
[1766607476346,0.01144,87654.0,87647.0,0.0114094]
[1766607476547,0.01144,87654.0,87646.0,0.01140953]
[1766607476765,0.01144,87654.0,87645.0,0.01140966]
[1766607476970,0.01144,87654.0,87646.0,0.01140953]
[1766607477565,0.01144,87654.0,87647.0,0.0114094]
[1766607478372,0.00647405,87654.0,87648.0,0.01140927]
[1766607478532,0.0020975,87654.0,87651.0,0.01140888]
[1766607478743,0.00016426,87654.0,87651.0,0.01140888]
[1766607479174,0.01144,87666.0,87656.0,0.01140823]
[1766607479346,0.01140641,87670.0,87657.0,0.06844818]
[1766607479547,0.01144,87666.0,87660.0,0.01140771]
[1766607479954,0.01144,87666.0,87661.0,0.01140758]
[1766607480798,0.01144,87666.0,87659.0,0.01140784]
[1766607481685,0.01144,87666.0,87658.0,0.01140797]
[1766607481883,0.01144,87666.0,87659.0,0.01140784]
[1766607482283,0.01144,87666.0,87660.0,0.01140771]
[1766607482688,0.00011,87671.0,87662.0,0.01140745]
[1766607482923,0.04564,87678.0,87668.0,0.01140667]
[1766607483071,0.01144,87677.0,87670.0,0.01140641]
[1766607483481,0.01144,87677.0,87669.0,0.01140654]
[1766607483682,0.01144,87677.0,87670.0,0.01140641]
[1766607483885,0.01144,87677.0,87668.0,0.01140667]
[1766607484085,0.01144,87677.0,87669.0,0.01140654]
[1766607484304,0.01144,87677.0,87669.0,0.0114592]
[1766607484515,0.01144,87677.0,87669.0,5.266e-05]
[1766607484918,0.01144,87677.0,87669.0,0.0114592]
[1766607485326,0.01144,87677.0,87669.0,5.266e-05]
[1766607486393,0.02284549,87677.0,87669.0,5.266e-05]
[1766607486651,0.02284549,87677.0,87669.0,6.6e-07]
[1766607486652,0.11274,87675.0,87669.0,6.6e-07]
[1766607487059,0.12414575,87675.0,87669.0,6.6e-07]
[1766607487263,0.12414589,87674.0,87669.0,6.6e-07]
[1766607487462,0.11274,87674.0,87669.0,6.6e-07]
[1766607488273,0.01140602,87673.0,87669.0,6.6e-07]
[1766607488682,0.11274,87672.0,87669.0,6.6e-07]
[1766607489218,0.11274,87670.0,87669.0,6.6e-07]
[1766607489559,0.11274,87664.0,87656.0,0.01144]
[1766607489702,0.12418,87663.0,87656.0,5.664e-05]
[1766607490878,0.12418,87663.0,87656.0,0.01146487]
[1766607491293,0.12418,87663.0,87657.0,0.0114081]
[1766607493444,0.12418,87663.0,87658.0,0.01140797]
[1766607493626,0.12418,87663.0,87657.0,0.0114081]
[1766607494026,0.12418,87663.0,87658.0,0.01140797]
[1766607494265,0.12418,87663.0,87657.0,0.0114081]
[1766607494868,0.12418,87663.0,87656.0,5.664e-05]
[1766607497527,0.13558732,87663.0,87656.0,5.664e-05]
[1766607498182,0.13558732,87663.0,87656.0,6.4e-07]
[1766607499480,0.11274,87657.0,87646.0,0.01140953]
[1766607499656,0.11274,87657.0,87648.0,0.01140927]
[1766607499860,0.11274,87657.0,87647.0,0.0114094]
[1766607500066,0.11274,87657.0,87649.0,0.01140914]
[1766607500262,0.11274,87657.0,87648.0,0.01140927]
[1766607500740,0.01140823,87656.0,87646.0,7.665e-05]
[1766607500922,0.12414836,87655.0,87646.0,7.665e-05]
[1766607501165,0.11274,87654.0,87646.0,7.665e-05]
[1766607501357,0.11274,87652.0,87646.0,6.5e-07]
[1766607502097,0.01140888,87651.0,87646.0,6.5e-07]
[1766607502355,0.02284862,87653.0,87646.0,6.5e-07]
[1766607502356,0.11274,87650.0,87646.0,6.5e-07]
[1766607507087,0.01144,87653.0,87650.0,0.000184]
[1766607507859,0.01144,87653.0,87646.0,6.5e-07]
[1766607508130,0.02284862,87653.0,87646.0,6.5e-07]
[1766607508262,0.14392862,87653.0,87646.0,6.5e-07]
[1766607509289,0.13252,87653.0,87646.0,6.5e-07]
[1766607509672,0.14392862,87653.0,87646.0,6.5e-07]
[1766607510450,0.13252,87653.0,87646.0,6.5e-07]
[1766607511834,0.01140875,87652.0,87646.0,6.5e-07]
[1766607512432,0.14392862,87653.0,87646.0,6.5e-07]
[1766607512842,0.01140875,87652.0,87646.0,6.5e-07]
[1766607516205,0.01140888,87651.0,87646.0,6.5e-07]
[1766607516409,0.01140875,87652.0,87646.0,6.5e-07]
[1766607516607,0.01140888,87651.0,87646.0,6.5e-07]
[1766607517013,0.13248888,87651.0,87646.0,6.5e-07]
[1766607517216,0.12108,87651.0,87646.0,6.5e-07]
[1766607517846,0.13248888,87651.0,87646.0,6.5e-07]
[1766607519498,0.13035901,87650.0,87646.0,6.5e-07]
[1766607519803,0.01140914,87649.0,87646.0,6.5e-07]
[1766607519956,0.01144,87648.0,87646.0,6.5e-07]
[1766607527455,0.01144,87649.0,87646.0,6.5e-07]
[1766607528695,0.02284914,87649.0,87646.0,6.5e-07]
[1766607529041,0.14179914,87649.0,87646.0,6.5e-07]
[1766607531109,0.17599665,87648.0,87646.0,6.5e-07]
[1766607531314,0.11895,87647.0,87646.0,6.5e-07]
[1766607533002,0.01140966,87645.0,87640.0,0.00011]
[1766607533213,0.01144,87649.0,87645.0,0.000184]
[1766607533581,0.01144,87649.0,87640.0,0.01160494]
[1766607533582,0.13039,87649.0,87640.0,0.00019463]
[1766607535798,0.13039,87649.0,87641.0,0.01141018]
[1766607535998,0.130206,87649.0,87642.0,0.01141005]
[1766607536535,0.130206,87649.0,87641.0,0.01141018]
[1766607536730,0.130206,87649.0,87642.0,0.01141005]
[1766607537415,0.130206,87649.0,87643.0,0.01140992]
[1766607538347,0.130206,87649.0,87644.0,0.01140979]
[1766607538733,0.130206,87649.0,87643.0,0.01140992]
[1766607538933,0.130206,87649.0,87644.0,0.01140979]
[1766607539068,0.130206,87649.0,87643.0,0.01140992]
[1766607539464,0.130206,87649.0,87644.0,0.01140979]
[1766607539673,0.130206,87649.0,87643.0,0.01140992]
[1766607540304,0.130206,87649.0,87642.0,0.01141005]
[1766607540891,0.130206,87649.0,87643.0,0.01140992]
[1766607542296,0.11406,87658.0,87645.0,0.01140966]
[1766607542526,0.01140823,87656.0,87644.0,0.05704841]
[1766607542884,0.12546823,87656.0,87644.0,0.01140979]
[1766607543373,0.068446,87661.0,87647.0,0.0114094]
[1766607543588,0.11406,87663.0,87653.0,0.01140862]
[1766607543753,0.11406,87663.0,87652.0,0.0684522]
[1766607543754,0.11406,87669.0,87656.0,0.01140823]
[1766607543960,0.01144,87667.0,87658.0,0.01140797]
[1766607544319,0.01144,87667.0,87660.0,0.01140771]
[1766607544522,0.01144,87667.0,87659.0,0.01140784]
[1766607544732,0.01144,87667.0,87660.0,0.01140771]
[1766607544931,0.01144,87667.0,87659.0,0.01140784]
[1766607545133,0.01144,87667.0,87659.0,0.06844688]
[1766607545338,0.11406,87669.0,87659.0,0.01140784]
[1766607545761,0.01144,87668.0,87659.0,0.01140784]
[1766607545961,0.01144,87668.0,87658.0,0.01140797]
[1766607547113,0.01144,87668.0,87659.0,0.01140784]
[1766607547611,0.01144,87668.0,87658.0,0.01140797]
[1766607548556,0.02284667,87668.0,87658.0,0.01140797]
[1766607548771,0.01144,87668.0,87658.0,0.01140797]
[1766607548989,0.01144,87668.0,87659.0,0.01140784]
[1766607549195,0.01144,87668.0,87658.0,0.01140797]
[1766607549609,0.000549,87658.0,87653.0,0.01144]
[1766607549809,0.000549,87658.0,87654.0,0.01140849]
[1766607550172,0.11406,87666.0,87655.0,0.01140836]
[1766607550354,0.11406,87666.0,87657.0,0.0114081]
[1766607550551,0.12546693,87666.0,87655.0,0.01140836]
[1766607550796,0.11406,87666.0,87654.0,0.01140849]
[1766607551057,0.12546706,87665.0,87653.0,0.02284862]
[1766607551483,0.11406,87665.0,87656.0,0.01140823]
[1766607552320,0.11406,87665.0,87655.0,0.01140836]
[1766607552643,0.12546706,87665.0,87654.0,0.01163721]
[1766607552944,0.12546706,87665.0,87655.0,0.01140836]
[1766607553353,0.12546706,87665.0,87654.0,0.01163721]
[1766607554537,0.12546706,87665.0,87654.0,0.00022872]
[1766607554738,0.12546706,87665.0,87654.0,0.01163721]
[1766607555047,0.11406,87665.0,87654.0,0.01163721]
[1766607555412,0.12546706,87665.0,87654.0,0.01163721]
[1766607556368,0.01140719,87664.0,87654.0,0.00022872]
[1766607557383,0.01140732,87663.0,87654.0,0.00022872]
[1766607557832,0.12546706,87665.0,87654.0,0.00022872]
[1766607558188,0.01140719,87664.0,87654.0,0.01163721]
[1766607558986,0.01144,87665.0,87656.0,0.01140823]
[1766607559216,0.01144,87665.0,87658.0,0.01140797]
[1766607559624,0.01144,87665.0,87658.0,1e-08]
[1766607559831,0.01144,87665.0,87658.0,0.01140798]
[1766607560260,0.01144,87665.0,87659.0,0.01140784]
[1766607560564,0.01144,87665.0,87660.0,0.01140771]
[1766607560901,0.01144,87665.0,87659.0,0.01140784]
[1766607562992,0.01144,87665.0,87658.0,0.01140798]
[1766607563553,0.01144,87665.0,87659.0,0.01140784]
[1766607564277,0.01144,87665.0,87658.0,0.01140798]
[1766607564677,0.01144,87665.0,87658.0,1e-08]
[1766607564881,0.02284706,87665.0,87658.0,1e-08]
[1766607567214,0.01144,87665.0,87658.0,1e-08]
[1766607568591,0.01144,87666.0,87658.0,1e-08]
[1766607569098,0.01144,87666.0,87658.0,0.01140798]
[1766607570214,0.00054899,87658.0,87655.0,0.06844982]
[1766607570420,0.01144,87666.0,87656.0,0.01140823]
[1766607570868,0.01144,87666.0,87657.0,0.0114081]
[1766607571494,0.12223,87665.0,87655.0,0.01140836]
[1766607571621,0.12223,87665.0,87656.0,0.01140823]
[1766607572242,0.12223,87665.0,87657.0,0.0114081]
[1766607573286,0.12223,87665.0,87656.0,0.01140823]
[1766607573489,0.12223,87665.0,87655.0,0.01140836]
[1766607574796,0.12223,87665.0,87656.0,0.01140823]
[1766607575213,0.13363706,87665.0,87654.0,0.01140849]
[1766607575416,0.12223,87665.0,87654.0,0.01140849]
[1766607575630,0.12223,87665.0,87656.0,0.01140823]
[1766607578057,0.12223,87665.0,87657.0,0.0114081]
[1766607579807,0.12223,87665.0,87656.0,0.01140823]
[1766607579967,0.12223,87665.0,87655.0,0.01140836]
[1766607580503,0.12223,87665.0,87656.0,0.01140823]
[1766607580706,0.000549,87656.0,87653.0,0.01144]
[1766607580880,0.12223,87665.0,87653.0,0.02284862]
[1766607580881,0.13363706,87665.0,87653.0,0.02284862]
[1766607582246,0.13363706,87665.0,87654.0,0.01140849]
[1766607582445,0.12223,87665.0,87655.0,0.01140836]
[1766607583823,0.12223,87665.0,87656.0,0.01140823]
[1766607584243,0.12223,87665.0,87655.0,0.01140836]
[1766607584440,0.12223,87665.0,87656.0,0.01140823]
[1766607584658,0.12223,87665.0,87655.0,0.01140836]
[1766607585650,0.13363706,87665.0,87655.0,0.01140836]
[1766607586030,0.12223,87665.0,87655.0,0.01140836]
[1766607586239,0.13363706,87665.0,87654.0,0.01140849]
[1766607586463,0.12223,87665.0,87655.0,0.01140836]
[1766607587178,0.13363706,87665.0,87655.0,0.01140836]
[1766607587513,0.12223,87665.0,87655.0,0.01140836]
[1766607589396,0.13363706,87665.0,87654.0,0.01140849]
[1766607589602,0.13363706,87665.0,87655.0,0.01140836]
[1766607589803,0.12223,87665.0,87656.0,0.01140823]
[1766607590024,0.12223,87665.0,87655.0,0.01140836]
[1766607590574,0.13363706,87665.0,87654.0,0.01140849]
[1766607591123,0.12223,87665.0,87655.0,0.01140836]
[1766607592191,0.13363706,87665.0,87654.0,0.01140849]
[1766607593009,0.13363706,87665.0,87655.0,0.01140836]
[1766607593169,0.13363706,87665.0,87654.0,0.01140849]
[1766607593843,0.06844292,87665.0,87653.0,0.01144]
[1766607594066,0.12846732,87663.0,87653.0,0.01144]
[1766607594396,0.11706,87663.0,87653.0,0.02284862]
[1766607594671,0.12846732,87663.0,87653.0,0.01144]
[1766607594975,0.11706,87663.0,87653.0,0.02284862]
[1766607596180,0.01140745,87662.0,87653.0,0.01144]
[1766607596409,0.12846732,87663.0,87653.0,0.02284862]
[1766607596578,0.11706,87663.0,87653.0,0.02284862]
[1766607596743,0.12846758,87661.0,87653.0,0.010891]
[1766607597044,0.11706,87661.0,87653.0,0.010891]
[1766607597450,0.12846758,87661.0,87653.0,0.010891]
[1766607597632,0.11706,87661.0,87653.0,0.010891]
[1766607598131,0.11706,87661.0,87653.0,0.02229962]
[1766607599487,0.11706,87661.0,87653.0,0.010891]
[1766607601257,0.01140771,87660.0,87653.0,0.010891]
[1766607601384,0.11706,87661.0,87653.0,0.010891]
[1766607601596,0.11706,87661.0,87653.0,0.0011621]
[1766607601597,0.01140758,87661.0,87653.0,0.0011621]
[1766607601806,0.01140758,87661.0,87640.0,0.3913927]
[1766607601807,0.11726,87649.0,87640.0,0.00019463]
[1766607602047,0.116711,87649.0,87642.0,0.05704993]
[1766607602201,0.01140836,87655.0,87641.0,0.01141018]
[1766607602202,0.01144,87652.0,87641.0,0.01141018]
[1766607602401,0.01144,87652.0,87642.0,0.01141005]
[1766607602402,0.1287,87652.0,87642.0,0.01141005]
[1766607602610,0.14010875,87652.0,87641.0,0.01141018]
[1766607602859,0.14010875,87652.0,87648.0,0.01140927]
[1766607602860,0.1287,87652.0,87648.0,0.01140927]
[1766607603060,0.1287,87652.0,87648.0,0.06845552]
[1766607603294,0.11726,87666.0,87652.0,0.01140875]
[1766607603497,0.01144,87665.0,87652.0,0.01140875]
[1766607603697,0.01140719,87664.0,87654.0,0.01140849]
[1766607603903,0.11726,87664.0,87654.0,0.01140849]
[1766607604458,0.12866719,87664.0,87654.0,0.01140849]
[1766607604656,0.11726,87664.0,87654.0,0.01140849]
[1766607605931,0.11726,87664.0,87655.0,0.01140836]
[1766607608761,0.01144,87665.0,87655.0,0.01140836]
[1766607609148,0.02284706,87665.0,87655.0,0.01140836]
[1766607609321,0.11726,87664.0,87654.0,0.01140849]
[1766607609527,0.12866719,87664.0,87653.0,0.01140862]
[1766607610045,0.12866719,87664.0,87654.0,0.01140849]
[1766607610247,0.12866719,87664.0,87653.0,0.01140862]
[1766607611521,0.11726,87664.0,87654.0,0.01140849]
[1766607611753,0.12858734,87664.0,87653.0,0.01140862]
[1766607612159,0.12858734,87664.0,87654.0,0.01140849]
[1766607612371,0.12858734,87664.0,87653.0,0.01140862]
[1766607616003,0.01140732,87663.0,87653.0,0.01140862]
[1766607616206,0.12858734,87664.0,87653.0,0.01140862]
[1766607617330,0.01144,87665.0,87654.0,0.05704246]
[1766607617534,0.01144,87665.0,87655.0,0.01140836]
[1766607617878,0.01144,87665.0,87656.0,0.01140823]
[1766607618413,0.01144,87665.0,87655.0,0.01140836]
[1766607618649,0.02284706,87665.0,87654.0,0.01140849]
[1766607619043,0.14010706,87665.0,87654.0,0.01140849]
[1766607619306,0.1287,87665.0,87654.0,0.01140849]
[1766607619505,0.11726,87664.0,87653.0,0.01140862]
[1766607619660,0.11726,87664.0,87654.0,0.01140849]
[1766607620811,0.11726,87664.0,87653.0,0.01140862]
[1766607621014,0.11726,87664.0,87655.0,0.01140836]
[1766607621219,0.11726,87664.0,87654.0,0.01140849]
[1766607621417,0.11726,87664.0,87656.0,0.01140823]
[1766607621622,0.11726,87664.0,87655.0,0.01140836]
[1766607622200,0.11726,87664.0,87656.0,0.01140823]
[1766607622781,0.01144,87670.0,87657.0,0.0114081]
[1766607623010,0.01140654,87669.0,87658.0,0.06844782]
[1766607623220,0.02284641,87670.0,87658.0,0.01140797]
[1766607623410,0.14010641,87670.0,87659.0,0.01140784]
[1766607624166,0.11726,87668.0,87657.0,0.0114081]
[1766607624306,0.11726,87668.0,87658.0,0.01140797]
[1766607624512,0.12866667,87668.0,87657.0,0.0114081]
[1766607624913,0.12866667,87668.0,87658.0,0.01140797]
[1766607625286,0.12866667,87668.0,87657.0,0.0114081]
[1766607625678,0.0114068,87667.0,87657.0,0.0114081]
[1766607625872,0.0114068,87667.0,87656.0,0.01140823]
[1766607626052,0.1286668,87667.0,87656.0,0.01140823]
[1766607626800,0.1286668,87667.0,87657.0,0.0114081]
[1766607627001,0.1286668,87667.0,87656.0,0.01140823]
[1766607627232,0.11726,87667.0,87656.0,0.01140823]
[1766607627586,0.1286668,87667.0,87656.0,0.01140823]
[1766607627996,0.1286668,87667.0,87657.0,0.0114081]
[1766607628196,0.1286668,87667.0,87656.0,0.01140823]
[1766607629592,0.11726,87667.0,87657.0,0.0114081]
[1766607629805,0.1286668,87667.0,87655.0,0.01144]
[1766607630653,0.11726,87667.0,87655.0,0.01144]
[1766607630824,0.1286668,87667.0,87655.0,0.02284836]
[1766607631466,0.12018,87663.0,87655.0,0.01144]
[1766607631845,0.12018,87663.0,87655.0,0.02284836]
[1766607634025,0.12018,87663.0,87656.0,0.01140823]
[1766607634230,0.12018,87663.0,87657.0,0.0114081]
[1766607634476,0.12018,87663.0,87658.0,0.01140797]
[1766607634674,0.01144,87665.0,87660.0,0.06844626]
[1766607634892,0.01144,87665.0,87662.0,0.01140745]
[1766607635102,0.01144,87665.0,87661.0,0.01140758]
[1766607635246,0.01144,87666.0,87660.0,0.06844626]
[1766607635587,0.01144,87666.0,87660.0,0.01140771]
[1766607635760,0.13162,87666.0,87660.0,0.01140771]
[1766607636821,0.13162,87666.0,87661.0,0.01140758]
[1766607639043,0.13162,87666.0,87660.0,0.01140771]
[1766607639250,0.13162,87666.0,87662.0,0.01140745]
[1766607639470,0.01144,87666.0,87662.0,0.01140745]
[1766607639674,0.01144,87666.0,87661.0,0.01140758]
[1766607640048,0.01144,87666.0,87662.0,0.01140745]
[1766607640452,0.01144,87666.0,87661.0,0.01140758]
[1766607640656,0.01144,87666.0,87662.0,0.01140745]
[1766607641059,0.01144,87666.0,87661.0,0.01140758]
[1766607641485,0.01144,87666.0,87660.0,0.01140771]
[1766607641659,0.01144,87666.0,87659.0,0.06844653]
[1766607641858,0.01144,87666.0,87660.0,0.01140771]
[1766607642243,0.01144,87666.0,87659.0,0.06844653]
[1766607642443,0.13162,87666.0,87657.0,0.0114081]
[1766607642641,0.13162,87666.0,87655.0,0.01144]
[1766607643055,0.01144341,87665.0,87656.0,0.01140823]
[1766607643300,0.01144341,87665.0,87655.0,0.02284836]
[1766607643497,0.01144341,87665.0,87656.0,0.01140823]
[1766607643778,0.01144341,87665.0,87655.0,0.02284836]
[1766607644710,0.01144341,87665.0,87656.0,0.01140823]
[1766607645334,0.01144341,87665.0,87655.0,0.02284836]
[1766607646523,0.01144341,87665.0,87661.0,0.01140758]
[1766607646724,0.01144341,87665.0,87660.0,0.01140771]
[1766607647120,0.01144341,87665.0,87659.0,0.01140784]
[1766607647539,0.01144341,87665.0,87660.0,0.01140771]
[1766607647909,3.41e-06,87665.0,87661.0,0.01140758]
[1766607648426,3.41e-06,87665.0,87662.0,0.01140745]
[1766607648642,3.41e-06,87665.0,87661.0,0.01140758]
[1766607648862,3.41e-06,87665.0,87662.0,0.01140745]
[1766607649063,3.41e-06,87665.0,87661.0,0.01140758]
[1766607649211,3.41e-06,87665.0,87662.0,0.01140745]
[1766607649609,3.41e-06,87665.0,87660.0,0.01140771]
[1766607649813,3.41e-06,87665.0,87661.0,0.01140758]
[1766607650854,3.41e-06,87665.0,87662.0,0.01140745]
[1766607651870,3.41e-06,87665.0,87661.0,0.01140758]
[1766607652447,3.41e-06,87665.0,87662.0,0.01140745]
[1766607653482,3.41e-06,87665.0,87661.0,0.01140758]
[1766607655765,3.41e-06,87665.0,87660.0,0.01140771]
[1766607656599,3.41e-06,87665.0,87658.0,0.0684476]
[1766607656819,3.41e-06,87665.0,87657.0,0.0114081]
[1766607657021,3.41e-06,87665.0,87658.0,0.01140797]
[1766607657469,0.01144,87666.0,87658.0,0.01140797]
[1766607658231,0.01144,87666.0,87659.0,0.01140784]
[1766607663153,0.01144,87666.0,87658.0,0.01140797]
[1766607663350,0.11654,87668.0,87659.0,0.01140784]
[1766607663555,0.01144,87667.0,87658.0,0.01140797]
[1766607663963,0.01144,87667.0,87659.0,0.01140784]
[1766607665987,0.12682,87667.0,87659.0,0.01140784]
[1766607666575,0.12682,87667.0,87658.0,0.01140797]
[1766607667271,0.12682,87667.0,87659.0,0.01140784]
[1766607667444,0.12682,87667.0,87658.0,0.01140797]
[1766607668272,0.12682,87667.0,87659.0,0.01140784]
[1766607669359,0.12682,87667.0,87658.0,0.01140797]
[1766607669830,0.12682,87667.0,87659.0,0.01140784]
[1766607672674,0.12682,87667.0,87658.0,0.01140797]
[1766607673011,0.12682,87667.0,87657.0,0.0114081]
[1766607673251,0.1382268,87667.0,87657.0,0.0114081]
[1766607673459,0.12682,87667.0,87657.0,0.0114081]
[1766607673657,0.12682,87667.0,87656.0,0.06844897]
[1766607674221,0.12682,87667.0,87658.0,0.01140797]
[1766607677612,0.12682,87667.0,87657.0,0.0114081]
[1766607678227,0.11538,87666.0,87655.0,0.01144]
[1766607678448,0.11538,87666.0,87655.0,0.02284836]
[1766607679087,0.11538,87666.0,87655.0,0.01144]
[1766607679508,0.12678693,87666.0,87656.0,0.01140823]
[1766607680309,0.11538,87666.0,87656.0,0.01140823]
[1766607680525,0.01140719,87664.0,87655.0,0.01144]
[1766607680727,0.001099,87656.0,87655.0,0.01144]
[1766607680932,0.11538,87662.0,87655.0,0.02284836]
[1766607681082,0.11538,87662.0,87655.0,0.01144]
[1766607682241,0.11538,87662.0,87656.0,0.01140823]
[1766607682598,0.11538,87662.0,87658.0,0.01140797]
[1766607683033,0.11538,87662.0,87659.0,0.01140784]
[1766607683246,0.11538,87662.0,87660.0,0.05703823]
[1766607685462,0.01144,87665.0,87662.0,0.06844411]
[1766607689650,0.01144,87665.0,87662.0,0.01140745]
[1766607690976,0.01144,87665.0,87660.0,0.05703855]
[1766607691161,0.01144,87665.0,87661.0,0.01140758]
[1766607692930,0.01144,87665.0,87662.0,0.01140745]
[1766607693130,0.01144,87665.0,87661.0,0.01140758]
[1766607694001,0.01144,87665.0,87662.0,0.01140745]
[1766607695018,0.01144,87665.0,87661.0,0.01140758]
[1766607695412,0.000549,87661.0,87660.0,0.01140771]
[1766607695627,0.01144,87665.0,87660.0,0.01140771]
[1766607696012,0.01144,87665.0,87661.0,0.01140758]
[1766607696201,0.00055,87660.0,87654.0,0.02284849]
[1766607696406,0.00055,87660.0,87655.0,0.01140836]
[1766607696790,0.12094,87664.0,87655.0,0.01140836]
[1766607697191,0.12094,87664.0,87654.0,0.02284849]
[1766607697399,0.12094,87664.0,87655.0,0.01140836]
[1766607697802,0.12094,87664.0,87654.0,0.02284849]
[1766607698902,0.12094,87664.0,87655.0,0.01140836]
[1766607700039,0.12094,87664.0,87654.0,0.02284849]
[1766607700221,0.12094,87664.0,87655.0,0.01140836]
[1766607701464,0.12094,87664.0,87656.0,0.01140823]
[1766607701684,0.12094,87664.0,87655.0,0.01140836]
[1766607701909,0.12094,87664.0,87656.0,0.01140823]
[1766607702136,0.12094,87664.0,87654.0,0.01144]
[1766607702403,0.12094,87664.0,87655.0,0.01140836]
[1766607702602,0.12094,87664.0,87654.0,0.02284849]
[1766607703416,0.12094,87664.0,87655.0,0.01140836]
[1766607704396,0.12094,87664.0,87656.0,0.01140823]
[1766607705366,0.12094,87664.0,87657.0,0.0114081]
[1766607705605,0.12094,87664.0,87656.0,0.01140823]
[1766607705785,0.12094,87664.0,87657.0,0.0114081]
[1766607706206,0.12094,87664.0,87656.0,0.01140823]
[1766607706416,0.12094,87664.0,87657.0,0.0114081]
[1766607706836,0.12094,87664.0,87656.0,0.01140823]
[1766607710251,0.12094,87664.0,87655.0,0.01140836]
[1766607710508,0.13234719,87664.0,87654.0,0.01144]
[1766607710737,0.12094,87664.0,87654.0,0.010891]
[1766607711128,0.12094,87664.0,87655.0,0.01140836]
[1766607711324,0.12094,87664.0,87654.0,0.02229949]
[1766607711325,0.12094,87664.0,87654.0,0.010891]
[1766607711525,0.12094,87664.0,87654.0,0.02229949]
[1766607711723,0.12094,87664.0,87654.0,0.010891]
[1766607711724,0.13234719,87664.0,87654.0,0.010891]
[1766607711886,0.12358,87663.0,87654.0,0.010891]
[1766607713791,0.12358,87663.0,87654.0,0.02229949]
[1766607714119,0.12358,87663.0,87654.0,0.010891]
[1766607714316,0.12358,87663.0,87654.0,0.02229949]
[1766607714983,0.12358,87663.0,87655.0,0.01140836]
[1766607715181,0.12358,87663.0,87654.0,0.02229949]
[1766607715540,0.12358,87663.0,87654.0,0.010891]
[1766607716479,0.13498732,87663.0,87654.0,0.010891]
[1766607716779,0.12358,87663.0,87654.0,0.02229949]
[1766607717366,0.12358,87663.0,87655.0,0.01140836]
[1766607717970,0.01140693,87666.0,87644.0,0.01140979]
[1766607717971,0.12358,87654.0,87644.0,0.01140979]
[1766607718178,0.01199,87655.0,87654.0,0.000549]
[1766607718383,0.12234,87660.0,87654.0,0.000549]
[1766607718607,0.01144,87663.0,87653.0,0.01140862]
[1766607719006,0.01144,87663.0,87652.0,0.01140875]
[1766607719183,0.01144,87663.0,87651.0,0.01140888]
[1766607719385,0.02284732,87663.0,87652.0,0.01140875]
[1766607719939,0.01140758,87661.0,87651.0,0.01140888]
[1766607720085,0.01140758,87661.0,87650.0,0.40260958]
[1766607720426,0.01140745,87662.0,87651.0,0.01140888]
[1766607720585,0.01140758,87661.0,87652.0,0.01144]
[1766607721590,0.01140732,87663.0,87652.0,0.02284875]
[1766607721790,0.01140654,87669.0,87663.0,0.000549]
[1766607722034,0.01144,87668.0,87663.0,0.000549]
[1766607722333,0.0114068,87667.0,87655.0,0.01140836]
[1766607722557,0.0114068,87667.0,87656.0,0.01140823]
[1766607722745,0.06844088,87667.0,87654.0,0.01140849]
[1766607722946,0.01140693,87666.0,87655.0,0.01140836]
[1766607723558,0.0114068,87667.0,87656.0,0.01140823]
[1766607723957,0.01140693,87666.0,87655.0,0.01140836]
[1766607724339,0.01140706,87665.0,87654.0,0.01140849]
[1766607724857,0.01140693,87666.0,87655.0,0.01140836]
[1766607725407,0.01140706,87665.0,87654.0,0.01140849]
[1766607725620,0.0114068,87667.0,87654.0,0.0684505]
[1766607725813,0.02284667,87668.0,87657.0,0.0114081]
[1766607726232,0.02284667,87668.0,87658.0,0.01140797]
[1766607726455,0.01144,87668.0,87658.0,0.01140797]
[1766607726631,0.02284667,87668.0,87656.0,0.01140823]
[1766607726832,0.02284667,87668.0,87657.0,0.0114081]